[Event "Early-Titled-Tuesday-Blitz-August-29-2023"]
[Site "Chess.com"]
[Date "2023.08.29"]
[Round "5"]
[White "dosto07"]
[Black "Zurability"]
[Result "0-1"]
[WhiteElo "2468"]
[BlackElo "2707"]
[TimeControl "180+1"]
[EndTime "8:56:10 PDT"]
[Termination "Zurability won on time"]

1. e4 {[%clk 0:02:59.9]} 1... c5 {[%clk 0:02:55.5]} 2. Nf3 {[%clk 0:02:59.2]}
2... d6 {[%clk 0:02:56]} 3. Bb5+ {[%clk 0:02:59.1]} 3... Nd7 {[%clk 0:02:55.5]}
4. d4 {[%clk 0:02:58.2]} 4... cxd4 {[%clk 0:02:54.9]} 5. Qxd4 {[%clk 0:02:59.1]}
5... a6 {[%clk 0:02:54.6]} 6. Bxd7+ {[%clk 0:02:58.6]} 6... Bxd7 {[%clk
0:02:55.5]} 7. Nc3 {[%clk 0:02:58.6]} 7... e5 {[%clk 0:02:54.7]} 8. Qd3 {[%clk
0:02:57.6]} 8... h6 {[%clk 0:02:54.9]} 9. Nd2 {[%clk 0:02:57.6]} 9... Nf6 {[%clk
0:02:53.1]} 10. Nc4 {[%clk 0:02:57.8]} 10... Be7 {[%clk 0:02:39.3]} 11. Nxd6+
{[%clk 0:02:52.7]} 11... Bxd6 {[%clk 0:02:28.2]} 12. Qxd6 {[%clk 0:02:51.8]}
12... Qe7 {[%clk 0:02:22.2]} 13. Qxe7+ {[%clk 0:02:45]} 13... Kxe7 {[%clk
0:02:23.1]} 14. Be3 {[%clk 0:02:43.2]} 14... Bc6 {[%clk 0:02:22.9]} 15. Bc5+
{[%clk 0:02:37.3]} 15... Ke6 {[%clk 0:02:22.8]} 16. f3 {[%clk 0:02:36.8]} 16...
Rhd8 {[%clk 0:02:21.5]} 17. Ke2 {[%clk 0:02:33.4]} 17... Nd7 {[%clk 0:02:16.5]}
18. Be3 {[%clk 0:02:31]} 18... b5 {[%clk 0:02:15.8]} 19. Rhd1 {[%clk 0:02:25.7]}
19... b4 {[%clk 0:02:06]} 20. Nd5 {[%clk 0:02:25.4]} 20... Bb5+ {[%clk
0:02:04.7]} 21. Ke1 {[%clk 0:02:13.5]} 21... Rac8 {[%clk 0:02:04.8]} 22. Rac1
{[%clk 0:01:43.1]} 22... a5 {[%clk 0:02:04.6]} 23. Bb6 {[%clk 0:01:30.8]} 23...
Nxb6 {[%clk 0:02:01.7]} 24. Nxb6 {[%clk 0:01:30.8]} 24... Rxd1+ {[%clk
0:01:56.6]} 25. Kxd1 {[%clk 0:01:29.6]} 25... Rc6 {[%clk 0:01:01.8]} 26. Nd5
{[%clk 0:01:26.5]} 26... f5 {[%clk 0:01:02.3]} 27. Kd2 {[%clk 0:01:09.2]} 27...
fxe4 {[%clk 0:01:02.1]} 28. fxe4 {[%clk 0:01:09]} 28... Rc4 {[%clk 0:01:02.6]}
29. Re1 {[%clk 0:00:58.1]} 29... Bc6 {[%clk 0:00:59.8]} 30. c3 {[%clk 0:00:37]}
30... Bxd5 {[%clk 0:00:55.1]} 31. exd5+ {[%clk 0:00:36.8]} 31... Kxd5 {[%clk
0:00:56]} 32. cxb4 {[%clk 0:00:34.5]} 32... Rxb4 {[%clk 0:00:56.5]} 33. Kc3
{[%clk 0:00:30.7]} 33... Rc4+ {[%clk 0:00:51.6]} 34. Kd2 {[%clk 0:00:28]} 34...
a4 {[%clk 0:00:35.9]} 35. Rf1 {[%clk 0:00:26.9]} 35... Rd4+ {[%clk 0:00:33.5]}
36. Kc3 {[%clk 0:00:21.8]} 36... Rc4+ {[%clk 0:00:30.7]} 37. Kd2 {[%clk
0:00:21.3]} 37... Rc7 {[%clk 0:00:31.1]} 38. Rf8 {[%clk 0:00:18]} 38... Rb7
{[%clk 0:00:21.3]} 39. Kc3 {[%clk 0:00:17.5]} 39... Rc7+ {[%clk 0:00:19.8]} 40.
Kd2 {[%clk 0:00:17.8]} 40... Ke4 {[%clk 0:00:16.2]} 41. Ra8 {[%clk 0:00:16.3]}
41... Rc4 {[%clk 0:00:14.4]} 42. Ra7 {[%clk 0:00:15.4]} 42... g5 {[%clk
0:00:14.2]} 43. Ra6 {[%clk 0:00:13.9]} 43... h5 {[%clk 0:00:14.1]} 44. Rg6
{[%clk 0:00:12.2]} 44... Kf5 {[%clk 0:00:13.2]} 45. Rh6 {[%clk 0:00:12.2]} 45...
h4 {[%clk 0:00:12.7]} 46. Rh8 {[%clk 0:00:12.4]} 46... Rg4 {[%clk 0:00:12.5]}
47. g3 {[%clk 0:00:10.1]} 47... hxg3 {[%clk 0:00:11.9]} 48. hxg3 {[%clk
0:00:10.3]} 48... Rxg3 {[%clk 0:00:12.5]} 49. Ra8 {[%clk 0:00:08.9]} 49... Rg2+
{[%clk 0:00:08.7]} 50. Kc3 {[%clk 0:00:09]} 50... g4 {[%clk 0:00:07.9]} 51. Rxa4
{[%clk 0:00:08.1]} 51... g3 {[%clk 0:00:08.6]} 52. Ra8 {[%clk 0:00:08.1]} 52...
Rf2 {[%clk 0:00:05.7]} 53. Rf8+ {[%clk 0:00:07.6]} 53... Ke4 {[%clk 0:00:05.6]}
54. Rg8 {[%clk 0:00:08]} 54... g2 {[%clk 0:00:06]} 55. a4 {[%clk 0:00:06.9]}
55... Kf4 {[%clk 0:00:06.4]} 56. a5 {[%clk 0:00:06.7]} 56... Rf3+ {[%clk
0:00:06.9]} 57. Kc4 {[%clk 0:00:06.3]} 57... Rg3 {[%clk 0:00:07.8]} 58. Rxg3
{[%clk 0:00:04.7]} 58... Kxg3 {[%clk 0:00:08.2]} 59. a6 {[%clk 0:00:05.4]} 59...
g1=Q {[%clk 0:00:08.8]} 60. Kb5 {[%clk 0:00:04.1]} 60... Qa7 {[%clk 0:00:09]}
61. b4 {[%clk 0:00:04.2]} 61... e4 {[%clk 0:00:09.2]} 62. Ka5 {[%clk 0:00:04.4]}
62... e3 {[%clk 0:00:09.7]} 63. b5 {[%clk 0:00:05.3]} 63... Qc5 {[%clk
0:00:09.5]} 64. a7 {[%clk 0:00:04.7]} 64... Qxa7+ {[%clk 0:00:09.7]} 65. Kb4
{[%clk 0:00:05]} 65... e2 {[%clk 0:00:10.6]} 66. b6 {[%clk 0:00:05.3]} 66... Qb7
{[%clk 0:00:11.2]} 67. Kb5 {[%clk 0:00:05.1]} 67... e1=Q {[%clk 0:00:12.1]} 0-1

[Event "Early-Titled-Tuesday-Blitz-August-29-2023"]
[Site "Chess.com"]
[Date "2023.08.29"]
[Round "5"]
[White "djano"]
[Black "Caisachess"]
[Result "1-0"]
[WhiteElo "2527"]
[BlackElo "2325"]
[TimeControl "180+1"]
[EndTime "8:56:18 PDT"]
[Termination "djano won on time"]

1. e4 {[%clk 0:03:00.9]} 1... e5 {[%clk 0:02:59.1]} 2. Nc3 {[%clk 0:02:59.3]}
2... Nc6 {[%clk 0:02:58.3]} 3. Bc4 {[%clk 0:02:57.9]} 3... Nf6 {[%clk
0:02:57.1]} 4. d3 {[%clk 0:02:58]} 4... Bc5 {[%clk 0:02:55.5]} 5. Nf3 {[%clk
0:02:55.4]} 5... d6 {[%clk 0:02:54.2]} 6. O-O {[%clk 0:02:54]} 6... h6 {[%clk
0:02:53.4]} 7. Be3 {[%clk 0:02:52.3]} 7... Bb6 {[%clk 0:02:51.5]} 8. Nd5 {[%clk
0:02:37.9]} 8... Nxd5 {[%clk 0:02:45.8]} 9. Bxd5 {[%clk 0:02:38.2]} 9... O-O
{[%clk 0:02:42.7]} 10. h3 {[%clk 0:02:35.4]} 10... Ne7 {[%clk 0:02:41.7]} 11.
Bb3 {[%clk 0:02:34.8]} 11... Ng6 {[%clk 0:02:40.7]} 12. d4 {[%clk 0:02:32.6]}
12... Qf6 {[%clk 0:02:37.5]} 13. c3 {[%clk 0:02:23.7]} 13... Nf4 {[%clk
0:02:33.4]} 14. Bxf4 {[%clk 0:02:20.1]} 14... Qxf4 {[%clk 0:02:31.7]} 15. Re1
{[%clk 0:02:02.8]} 15... Re8 {[%clk 0:02:27.7]} 16. dxe5 {[%clk 0:01:34.7]}
16... dxe5 {[%clk 0:02:25.7]} 17. Qd2 {[%clk 0:01:35.3]} 17... Qf6 {[%clk
0:02:19.2]} 18. Qe2 {[%clk 0:01:24.3]} 18... Bd7 {[%clk 0:02:12.6]} 19. Rad1
{[%clk 0:01:22.1]} 19... Rad8 {[%clk 0:02:11.8]} 20. Kh1 {[%clk 0:01:17.3]}
20... Bc6 {[%clk 0:02:11.6]} 21. Bd5 {[%clk 0:01:02.9]} 21... Bxd5 {[%clk
0:02:10.9]} 22. Rxd5 {[%clk 0:01:02.6]} 22... Rxd5 {[%clk 0:02:10.4]} 23. exd5
{[%clk 0:01:03.5]} 23... e4 {[%clk 0:02:10.7]} 24. Kg1 {[%clk 0:00:48.2]} 24...
Qd6 {[%clk 0:01:50.4]} 25. c4 {[%clk 0:00:34.9]} 25... Qc5 {[%clk 0:01:41.3]}
26. Nh2 {[%clk 0:00:28.6]} 26... f5 {[%clk 0:01:36.4]} 27. b3 {[%clk 0:00:24.6]}
27... f4 {[%clk 0:01:33.2]} 28. Nf1 {[%clk 0:00:23.5]} 28... Ba5 {[%clk
0:01:26.5]} 29. Rd1 {[%clk 0:00:21.8]} 29... Qe7 {[%clk 0:01:09.5]} 30. Kh1
{[%clk 0:00:20.5]} 30... Qe5 {[%clk 0:01:09.3]} 31. c5 {[%clk 0:00:19.7]} 31...
Qf5 {[%clk 0:01:03.9]} 32. Qb5 {[%clk 0:00:17.5]} 32... Rf8 {[%clk 0:00:49.8]}
33. Qxa5 {[%clk 0:00:17.1]} 33... f3 {[%clk 0:00:50.6]} 34. g4 {[%clk
0:00:16.4]} 34... Qe5 {[%clk 0:00:44]} 35. Qd2 {[%clk 0:00:15.4]} 35... h5
{[%clk 0:00:40.1]} 36. Nh2 {[%clk 0:00:11.5]} 36... hxg4 {[%clk 0:00:30.9]} 37.
hxg4 {[%clk 0:00:12.4]} 37... Rf6 {[%clk 0:00:23]} 38. d6 {[%clk 0:00:12.6]}
38... Rh6 {[%clk 0:00:23.1]} 39. Qd5+ {[%clk 0:00:11.8]} 39... Qxd5 {[%clk
0:00:21.1]} 40. Rxd5 {[%clk 0:00:12.7]} 40... e3 {[%clk 0:00:21.8]} 41. fxe3
{[%clk 0:00:12.4]} 41... f2 {[%clk 0:00:22.2]} 42. Rf5 {[%clk 0:00:12.8]} 42...
cxd6 {[%clk 0:00:21.3]} 43. Rxf2 {[%clk 0:00:11.5]} 43... dxc5 {[%clk
0:00:21.2]} 44. Kg2 {[%clk 0:00:11.8]} 44... Rd6 {[%clk 0:00:20.6]} 45. Nf3
{[%clk 0:00:11.1]} 45... b5 {[%clk 0:00:19.2]} 46. Rd2 {[%clk 0:00:11.7]} 46...
Rc6 {[%clk 0:00:19.1]} 47. e4 {[%clk 0:00:10.6]} 47... Kf8 {[%clk 0:00:18.4]}
48. e5 {[%clk 0:00:10.7]} 48... Ke7 {[%clk 0:00:18.5]} 49. Kf2 {[%clk
0:00:10.2]} 49... a5 {[%clk 0:00:17.9]} 50. Ke3 {[%clk 0:00:10.5]} 50... c4
{[%clk 0:00:16.8]} 51. bxc4 {[%clk 0:00:10.3]} 51... Rxc4 {[%clk 0:00:17.7]} 52.
Rd4 {[%clk 0:00:10]} 52... Rc3+ {[%clk 0:00:17.5]} 53. Rd3 {[%clk 0:00:10]}
53... Rc2 {[%clk 0:00:17.3]} 54. a3 {[%clk 0:00:10.3]} 54... a4 {[%clk
0:00:14.9]} 55. Nd4 {[%clk 0:00:10.4]} 55... Rb2 {[%clk 0:00:12.7]} 56. Ke4
{[%clk 0:00:10]} 56... Rb1 {[%clk 0:00:10.2]} 57. Nf5+ {[%clk 0:00:09.7]} 57...
Kf8 {[%clk 0:00:08]} 58. e6 {[%clk 0:00:08.9]} 58... Re1+ {[%clk 0:00:02.8]} 59.
Kd5 {[%clk 0:00:06.3]} 59... Rb1 {[%clk 0:00:03.7]} 60. e7+ {[%clk 0:00:06.3]}
60... Ke8 {[%clk 0:00:03.4]} 61. Ke6 {[%clk 0:00:06.2]} 61... Re1+ {[%clk
0:00:03.4]} 62. Re3 {[%clk 0:00:05.3]} 62... Rb1 {[%clk 0:00:04.3]} 63. Rd3
{[%clk 0:00:04.4]} 63... Re1+ {[%clk 0:00:03.4]} 64. Ne3 {[%clk 0:00:05]} 1-0

[Event "Early-Titled-Tuesday-Blitz-August-29-2023"]
[Site "Chess.com"]
[Date "2023.08.29"]
[Round "5"]
[White "Iunusovnuriddin"]
[Black "LangesNasenhaar"]
[Result "0-1"]
[WhiteElo "2296"]
[BlackElo "2469"]
[TimeControl "180+1"]
[EndTime "8:56:20 PDT"]
[Termination "LangesNasenhaar won on time"]

1. e4 {[%clk 0:02:58.3]} 1... g6 {[%clk 0:02:37.3]} 2. d4 {[%clk 0:02:57.6]}
2... Bg7 {[%clk 0:02:37.1]} 3. Nc3 {[%clk 0:02:58]} 3... c6 {[%clk 0:02:35.8]}
4. Nf3 {[%clk 0:02:46.2]} 4... d5 {[%clk 0:02:35.8]} 5. Bd3 {[%clk 0:02:41.6]}
5... dxe4 {[%clk 0:02:32.5]} 6. Nxe4 {[%clk 0:02:42.5]} 6... Nd7 {[%clk
0:02:30]} 7. Qe2 {[%clk 0:02:28.6]} 7... Qc7 {[%clk 0:02:28.3]} 8. O-O {[%clk
0:02:22.8]} 8... Ngf6 {[%clk 0:02:26.9]} 9. Re1 {[%clk 0:02:20.8]} 9... O-O
{[%clk 0:02:21.1]} 10. Nxf6+ {[%clk 0:02:14.3]} 10... exf6 {[%clk 0:02:21.2]}
11. c3 {[%clk 0:01:51.8]} 11... Nb6 {[%clk 0:02:10.6]} 12. Bd2 {[%clk
0:01:51.8]} 12... Be6 {[%clk 0:02:07.1]} 13. Be3 {[%clk 0:01:32.8]} 13... Rfe8
{[%clk 0:02:04.6]} 14. b3 {[%clk 0:01:28.2]} 14... Nd5 {[%clk 0:01:59.3]} 15. c4
{[%clk 0:01:16.9]} 15... Nxe3 {[%clk 0:01:50.9]} 16. fxe3 {[%clk 0:01:17.8]}
16... a5 {[%clk 0:01:44.5]} 17. e4 {[%clk 0:01:13.4]} 17... a4 {[%clk
0:01:42.1]} 18. b4 {[%clk 0:01:13.5]} 18... a3 {[%clk 0:01:34.2]} 19. Qc2 {[%clk
0:01:08.6]} 19... Bg4 {[%clk 0:01:27.7]} 20. Nd2 {[%clk 0:00:59.6]} 20... Qb6
{[%clk 0:01:22.4]} 21. c5 {[%clk 0:00:44]} 21... Qxb4 {[%clk 0:01:20]} 22. Nc4
{[%clk 0:00:44.2]} 22... Be6 {[%clk 0:01:04.6]} 23. Rab1 {[%clk 0:00:34.1]}
23... Qa4 {[%clk 0:01:04.9]} 24. Qxa4 {[%clk 0:00:34.7]} 24... Rxa4 {[%clk
0:01:05.1]} 25. Rec1 {[%clk 0:00:35.4]} 25... Re7 {[%clk 0:00:55.1]} 26. Rc3
{[%clk 0:00:30.1]} 26... f5 {[%clk 0:00:52.1]} 27. e5 {[%clk 0:00:29.2]} 27...
f6 {[%clk 0:00:52.3]} 28. Rbb3 {[%clk 0:00:08.2]} 28... fxe5 {[%clk 0:00:49.3]}
29. dxe5 {[%clk 0:00:08.2]} 29... h5 {[%clk 0:00:32.3]} 30. Rxa3 {[%clk
0:00:08]} 30... Rxa3 {[%clk 0:00:31]} 31. Rxa3 {[%clk 0:00:08.9]} 31... Kh7
{[%clk 0:00:27.1]} 32. Ra7 {[%clk 0:00:08.7]} 32... Bxc4 {[%clk 0:00:25.1]} 33.
Bxc4 {[%clk 0:00:09.1]} 33... Bxe5 {[%clk 0:00:25.8]} 34. Ba6 {[%clk 0:00:07.3]}
34... Bd4+ {[%clk 0:00:21.4]} 35. Kf1 {[%clk 0:00:07.7]} 35... Bxc5 {[%clk
0:00:10]} 36. Rxb7 {[%clk 0:00:07.8]} 36... Kg7 {[%clk 0:00:09.9]} 37. Rxe7+
{[%clk 0:00:06.9]} 37... Bxe7 {[%clk 0:00:10.2]} 38. Bb7 {[%clk 0:00:07.2]}
38... c5 {[%clk 0:00:10.6]} 39. Ke2 {[%clk 0:00:06.1]} 39... Kf6 {[%clk
0:00:10.6]} 40. Kd3 {[%clk 0:00:06.5]} 40... Ke5 {[%clk 0:00:10.9]} 41. Kc4
{[%clk 0:00:07.4]} 41... Kd6 {[%clk 0:00:09.5]} 42. a4 {[%clk 0:00:08.1]} 42...
Bd8 {[%clk 0:00:09.7]} 43. Bd5 {[%clk 0:00:08.8]} 43... g5 {[%clk 0:00:09.6]}
44. Bf7 {[%clk 0:00:09.2]} 44... h4 {[%clk 0:00:09.9]} 45. h3 {[%clk 0:00:09.9]}
45... g4 {[%clk 0:00:09.1]} 46. hxg4 {[%clk 0:00:10.8]} 46... fxg4 {[%clk
0:00:09.3]} 47. Bh5 {[%clk 0:00:11.2]} 47... h3 {[%clk 0:00:08.2]} 48. gxh3
{[%clk 0:00:11.1]} 48... gxh3 {[%clk 0:00:08.5]} 49. Bf3 {[%clk 0:00:11.7]}
49... h2 {[%clk 0:00:07.3]} 50. Kb5 {[%clk 0:00:12.1]} 50... Bc7 {[%clk
0:00:04.2]} 51. a5 {[%clk 0:00:09.2]} 51... Bxa5 {[%clk 0:00:03.3]} 52. Kxa5
{[%clk 0:00:10]} 52... Ke5 {[%clk 0:00:04.2]} 53. Kb5 {[%clk 0:00:09.7]} 53...
Kd4 {[%clk 0:00:05.1]} 54. Ka4 {[%clk 0:00:06.2]} 54... c4 {[%clk 0:00:05]} 55.
Ka3 {[%clk 0:00:06.3]} 55... c3 {[%clk 0:00:04.6]} 56. Kb3 {[%clk 0:00:05.4]}
56... Kd3 {[%clk 0:00:05]} 57. Bc6 {[%clk 0:00:01.2]} 57... c2 {[%clk
0:00:04.7]} 0-1

[Event "Early-Titled-Tuesday-Blitz-August-29-2023"]
[Site "Chess.com"]
[Date "2023.08.29"]
[Round "5"]
[White "Jospem"]
[Black "snowlord"]
[Result "1-0"]
[WhiteElo "3063"]
[BlackElo "2909"]
[TimeControl "180+1"]
[EndTime "8:56:28 PDT"]
[Termination "Jospem won on time"]

1. e4 {[%clk 0:03:00.9]} 1... c5 {[%clk 0:02:57.5]} 2. Nf3 {[%clk 0:03:00.9]}
2... d6 {[%clk 0:02:57.9]} 3. c3 {[%clk 0:03:00.9]} 3... Nf6 {[%clk 0:02:58.1]}
4. h3 {[%clk 0:03:01.2]} 4... Nc6 {[%clk 0:02:57.6]} 5. Bd3 {[%clk 0:03:00.9]}
5... g5 {[%clk 0:02:58.2]} 6. Bc2 {[%clk 0:03:00.6]} 6... g4 {[%clk 0:02:58.8]}
7. hxg4 {[%clk 0:03:01.5]} 7... Bxg4 {[%clk 0:02:59.3]} 8. d3 {[%clk 0:03:02.3]}
8... Qc7 {[%clk 0:02:59.5]} 9. Bf4 {[%clk 0:03:02.5]} 9... O-O-O {[%clk
0:02:59.7]} 10. Nbd2 {[%clk 0:03:01.1]} 10... h5 {[%clk 0:02:52.7]} 11. Qe2
{[%clk 0:03:00.1]} 11... Bh6 {[%clk 0:02:28]} 12. Bxh6 {[%clk 0:02:57.7]} 12...
Rxh6 {[%clk 0:02:28.9]} 13. Qe3 {[%clk 0:02:57.9]} 13... Rg6 {[%clk 0:02:25]}
14. O-O-O {[%clk 0:02:49.8]} 14... Kb8 {[%clk 0:02:19.2]} 15. Rde1 {[%clk
0:02:47]} 15... Be6 {[%clk 0:02:11.2]} 16. Nh4 {[%clk 0:02:36.5]} 16... Rgg8
{[%clk 0:01:39.9]} 17. Kb1 {[%clk 0:02:36.8]} 17... Ne5 {[%clk 0:01:24.4]} 18.
f4 {[%clk 0:02:17]} 18... Neg4 {[%clk 0:01:21.5]} 19. Qe2 {[%clk 0:02:17.6]}
19... Qa5 {[%clk 0:01:14.7]} 20. Bb3 {[%clk 0:02:12.6]} 20... Bxb3 {[%clk
0:01:14.2]} 21. axb3 {[%clk 0:02:13.3]} 21... e6 {[%clk 0:01:07.3]} 22. Nhf3
{[%clk 0:02:13.1]} 22... Qb5 {[%clk 0:01:01.4]} 23. e5 {[%clk 0:01:52.9]} 23...
dxe5 {[%clk 0:00:59.9]} 24. fxe5 {[%clk 0:01:53.8]} 24... Ne8 {[%clk 0:00:46.3]}
25. Rxh5 {[%clk 0:01:33.9]} 25... Qxd3+ {[%clk 0:00:40.5]} 26. Qxd3 {[%clk
0:01:33.7]} 26... Rxd3 {[%clk 0:00:41.4]} 27. Ne4 {[%clk 0:01:20.5]} 27... b6
{[%clk 0:00:41.5]} 28. Kc2 {[%clk 0:01:07.3]} 28... Re3 {[%clk 0:00:41.2]} 29.
Kd2 {[%clk 0:01:07.9]} 29... Rxe1 {[%clk 0:00:39.2]} 30. Nxe1 {[%clk 0:01:08.8]}
30... f5 {[%clk 0:00:27.3]} 31. Ng5 {[%clk 0:00:49.8]} 31... Ng7 {[%clk
0:00:27.5]} 32. Rh7 {[%clk 0:00:39.6]} 32... Nxe5 {[%clk 0:00:27.8]} 33. Ke2
{[%clk 0:00:36.6]} 33... Ng4 {[%clk 0:00:19.9]} 34. Nef3 {[%clk 0:00:29.2]}
34... Nf6 {[%clk 0:00:20.4]} 35. Rh6 {[%clk 0:00:27.4]} 35... Nd5 {[%clk
0:00:20.8]} 36. g3 {[%clk 0:00:23]} 36... f4 {[%clk 0:00:20.7]} 37. g4 {[%clk
0:00:21.7]} 37... Kb7 {[%clk 0:00:18.1]} 38. Ne5 {[%clk 0:00:15.5]} 38... Ka6
{[%clk 0:00:12.6]} 39. Ngf3 {[%clk 0:00:15.7]} 39... Rd8 {[%clk 0:00:07.7]} 40.
Rh7 {[%clk 0:00:13.2]} 40... Ne8 {[%clk 0:00:07.7]} 41. Nc6 {[%clk 0:00:13.7]}
41... Ra8 {[%clk 0:00:07.9]} 42. Rh6 {[%clk 0:00:08.2]} 42... Nec7 {[%clk
0:00:07.3]} 43. Nce5 {[%clk 0:00:08.3]} 43... Rg8 {[%clk 0:00:05.9]} 44. g5
{[%clk 0:00:08.8]} 44... b5 {[%clk 0:00:06.3]} 45. Nd7 {[%clk 0:00:06.3]} 45...
c4 {[%clk 0:00:05.9]} 46. bxc4 {[%clk 0:00:06.5]} 46... bxc4 {[%clk 0:00:06.8]}
47. Nc5+ {[%clk 0:00:07.2]} 47... Kb5 {[%clk 0:00:07]} 48. Nxe6 {[%clk
0:00:07.3]} 48... Nxe6 {[%clk 0:00:07.8]} 49. Rxe6 {[%clk 0:00:07.1]} 49... Ka4
{[%clk 0:00:08.5]} 50. Nd4 {[%clk 0:00:04.5]} 50... a5 {[%clk 0:00:08.3]} 51.
Re5 {[%clk 0:00:04.2]} 51... Ne3 {[%clk 0:00:07.9]} 52. Kf3 {[%clk 0:00:02.9]}
52... Nd1 {[%clk 0:00:08.3]} 53. Nc6 {[%clk 0:00:02.2]} 53... Kb3 {[%clk
0:00:06.9]} 54. Nxa5+ {[%clk 0:00:02.2]} 54... Kxb2 {[%clk 0:00:07.4]} 55. Nxc4+
{[%clk 0:00:02.3]} 55... Kxc3 {[%clk 0:00:08.1]} 56. Nd6 {[%clk 0:00:02.9]}
56... Ne3 {[%clk 0:00:05.8]} 57. Kxf4 {[%clk 0:00:03.3]} 57... Ng2+ {[%clk
0:00:02.6]} 58. Kg3 {[%clk 0:00:03.4]} 58... Kd4 {[%clk 0:00:03.2]} 59. Nf7
{[%clk 0:00:02.8]} 59... Ne3 {[%clk 0:00:03]} 60. Kf4 {[%clk 0:00:02.6]} 60...
Nd5+ {[%clk 0:00:03.4]} 61. Kg4 {[%clk 0:00:03.3]} 61... Ne3+ {[%clk 0:00:02.8]}
62. Kh5 {[%clk 0:00:03.9]} 62... Rh8+ {[%clk 0:00:01.6]} 63. Kg6 {[%clk
0:00:04]} 63... Nd5 {[%clk 0:00:02.2]} 64. Re1 {[%clk 0:00:02.1]} 64... Rh2
{[%clk 0:00:01.8]} 65. Nd6 {[%clk 0:00:02]} 1-0

[Event "Early-Titled-Tuesday-Blitz-August-29-2023"]
[Site "Chess.com"]
[Date "2023.08.29"]
[Round "5"]
[White "DrDreBeats"]
[Black "Bauman_Guy"]
[Result "0-1"]
[WhiteElo "2600"]
[BlackElo "2806"]
[TimeControl "180+1"]
[EndTime "8:56:30 PDT"]
[Termination "Bauman_Guy won by resignation"]

1. e4 {[%clk 0:02:52.5]} 1... c5 {[%clk 0:02:59.4]} 2. Nf3 {[%clk 0:02:52.4]}
2... d6 {[%clk 0:02:59.6]} 3. d4 {[%clk 0:02:52.5]} 3... Nf6 {[%clk 0:02:59.9]}
4. Nc3 {[%clk 0:02:51.8]} 4... cxd4 {[%clk 0:02:59.9]} 5. Nxd4 {[%clk
0:02:51.6]} 5... a6 {[%clk 0:03:00.1]} 6. Be3 {[%clk 0:02:51.9]} 6... e5 {[%clk
0:03:00]} 7. Nf3 {[%clk 0:02:52.2]} 7... Be7 {[%clk 0:03:00.2]} 8. Bc4 {[%clk
0:02:51.7]} 8... O-O {[%clk 0:03:00.2]} 9. O-O {[%clk 0:02:50.4]} 9... Be6
{[%clk 0:03:00.2]} 10. Bb3 {[%clk 0:02:49.8]} 10... Nc6 {[%clk 0:02:58.7]} 11.
Qe2 {[%clk 0:02:49.9]} 11... Na5 {[%clk 0:02:57.6]} 12. Rfd1 {[%clk 0:02:50.2]}
12... Qc7 {[%clk 0:02:56.8]} 13. h3 {[%clk 0:02:47.8]} 13... h6 {[%clk 0:02:56]}
14. Nh4 {[%clk 0:02:47.3]} 14... Nc4 {[%clk 0:02:53.8]} 15. Bxc4 {[%clk
0:02:32.6]} 15... Bxc4 {[%clk 0:02:51.6]} 16. Qf3 {[%clk 0:02:31.7]} 16... Be6
{[%clk 0:02:43.6]} 17. Nf5 {[%clk 0:02:31.6]} 17... Rfd8 {[%clk 0:02:38.3]} 18.
Rac1 {[%clk 0:02:22]} 18... b5 {[%clk 0:02:22.6]} 19. Nd5 {[%clk 0:02:21.1]}
19... Nxd5 {[%clk 0:02:15.2]} 20. exd5 {[%clk 0:02:20.9]} 20... Bxf5 {[%clk
0:02:15.2]} 21. Qxf5 {[%clk 0:02:20.8]} 21... g6 {[%clk 0:02:15.3]} 22. Qd3
{[%clk 0:02:17.6]} 22... Bf8 {[%clk 0:02:11.2]} 23. c4 {[%clk 0:02:11.1]} 23...
Qb7 {[%clk 0:02:10.8]} 24. c5 {[%clk 0:01:48.7]} 24... dxc5 {[%clk 0:02:08]} 25.
Bxc5 {[%clk 0:01:48.8]} 25... Bg7 {[%clk 0:02:02.4]} 26. b4 {[%clk 0:01:42.3]}
26... Rd7 {[%clk 0:02:00]} 27. d6 {[%clk 0:01:20.1]} 27... Rad8 {[%clk
0:01:59.2]} 28. Qe3 {[%clk 0:01:19.2]} 28... Rb8 {[%clk 0:01:40.8]} 29. Rd2
{[%clk 0:01:13.9]} 29... Kh7 {[%clk 0:01:39.6]} 30. Rcd1 {[%clk 0:01:14.1]}
30... f5 {[%clk 0:01:35.8]} 31. Qb3 {[%clk 0:01:10.4]} 31... Re8 {[%clk
0:01:32.6]} 32. a4 {[%clk 0:01:08.9]} 32... e4 {[%clk 0:01:30.6]} 33. axb5
{[%clk 0:01:07.7]} 33... axb5 {[%clk 0:01:31.5]} 34. Ra2 {[%clk 0:01:06.6]}
34... Qc6 {[%clk 0:01:26.7]} 35. Qd5 {[%clk 0:01:03.9]} 35... Qxd5 {[%clk
0:01:10]} 36. Rxd5 {[%clk 0:01:04.8]} 36... Bf8 {[%clk 0:01:10.6]} 37. Ra7
{[%clk 0:01:03.5]} 37... Rd8 {[%clk 0:01:07.9]} 38. Bb6 {[%clk 0:00:48.5]} 38...
Rxa7 {[%clk 0:01:06.6]} 39. Bxd8 {[%clk 0:00:48.4]} 39... Rd7 {[%clk 0:00:57]}
40. Bc7 {[%clk 0:00:48.3]} 40... Kg7 {[%clk 0:00:48.7]} 41. g4 {[%clk
0:00:21.5]} 41... Kf6 {[%clk 0:00:43]} 42. gxf5 {[%clk 0:00:21]} 42... gxf5
{[%clk 0:00:42.9]} 43. Rxb5 {[%clk 0:00:21.4]} 43... Bxd6 {[%clk 0:00:42.3]} 44.
Bxd6 {[%clk 0:00:21]} 44... Rxd6 {[%clk 0:00:43.2]} 45. Kg2 {[%clk 0:00:20.9]}
45... Kg5 {[%clk 0:00:41.5]} 46. Rb8 {[%clk 0:00:19.2]} 46... Kf4 {[%clk
0:00:40.8]} 47. b5 {[%clk 0:00:19.2]} 47... Rd2 {[%clk 0:00:40.6]} 48. Re8
{[%clk 0:00:15.2]} 48... Rb2 {[%clk 0:00:39.3]} 49. Re6 {[%clk 0:00:13.8]} 49...
h5 {[%clk 0:00:39.2]} 50. h4 {[%clk 0:00:13.2]} 50... Rxb5 {[%clk 0:00:36.3]}
51. Ra6 {[%clk 0:00:11.1]} 51... Rb2 {[%clk 0:00:35.8]} 52. Ra3 {[%clk 0:00:11]}
52... Kg4 {[%clk 0:00:35.5]} 53. Rg3+ {[%clk 0:00:10.1]} 53... Kxh4 {[%clk
0:00:33.3]} 54. Kf1 {[%clk 0:00:09.9]} 54... f4 {[%clk 0:00:31.7]} 55. Rg8
{[%clk 0:00:10]} 55... f3 {[%clk 0:00:26.8]} 56. Ke1 {[%clk 0:00:10.1]} 56...
Rb1+ {[%clk 0:00:19.8]} 57. Kd2 {[%clk 0:00:10.4]} 57... Rf1 {[%clk 0:00:19.9]}
58. Ke3 {[%clk 0:00:10.6]} 58... Re1+ {[%clk 0:00:20.3]} 59. Kf4 {[%clk
0:00:10.2]} 59... Re2 {[%clk 0:00:20.3]} 60. Rg1 {[%clk 0:00:10.3]} 60... Kh3
{[%clk 0:00:20.5]} 61. Rh1+ {[%clk 0:00:09.9]} 61... Kg2 {[%clk 0:00:20.7]} 62.
Rxh5 {[%clk 0:00:10.2]} 62... Kxf2 {[%clk 0:00:21.1]} 63. Rh2+ {[%clk
0:00:10.3]} 63... Ke1 {[%clk 0:00:21.3]} 64. Rh1+ {[%clk 0:00:10.4]} 64... Kd2
{[%clk 0:00:21.2]} 65. Kg3 {[%clk 0:00:10.9]} 65... f2 {[%clk 0:00:21]} 66. Kg2
{[%clk 0:00:10.7]} 66... e3 {[%clk 0:00:21.3]} 67. Ra1 {[%clk 0:00:11]} 67...
Re1 {[%clk 0:00:21.5]} 68. Ra2+ {[%clk 0:00:11.4]} 68... Kc3 {[%clk 0:00:21.8]}
69. Ra3+ {[%clk 0:00:11.8]} 69... Kb4 {[%clk 0:00:22.1]} 0-1